bitfinex/quotes_BTCUSD_20241117
["timestamp","ask_amount","ask_price","bid_price","bid_amount"]
[1731857562785,0.001712,90397.0,90389.0,0.60563882]
[1731857562786,0.001712,90397.0,90389.0,0.1289]
[1731857563000,0.221248,90396.0,90389.0,0.0802]
[1731857563217,0.10906255,90395.0,90375.0,0.0802]
[1731857563429,0.110643,90381.0,90377.0,0.16613963]
[1731857563644,0.110643,90381.0,90376.0,0.110648]
[1731857564139,0.10906255,90395.0,90376.0,0.221297]
[1731857564357,0.16613963,90389.0,90381.0,0.110642]
[1731857564572,0.110637,90386.0,90379.0,0.110643]
[1731857564789,0.16613963,90389.0,90376.0,0.221297]
[1731857565014,0.110637,90386.0,90380.0,0.110643]
[1731857565431,0.110636,90387.0,90378.0,0.221292]
[1731857565647,0.11063,90391.0,90375.0,0.0802]
[1731857565857,0.16613963,90390.0,90389.0,0.110632]
[1731857566074,0.16613963,90390.0,90388.0,0.11441082]
[1731857566299,0.110629,90393.0,90388.0,0.11441082]
[1731857566528,0.0058563,90408.0,90389.0,0.0802]
[1731857566741,0.110614,90404.0,90396.0,0.110624]
[1731857566954,0.16613963,90399.0,90396.0,0.110624]
[1731857567175,0.110616,90403.0,90396.0,0.110624]
[1731857567871,0.0008563,90408.0,90396.0,0.22503482]
[1731857568960,0.0008563,90408.0,90396.0,0.30523482]
[1731857569182,0.0008563,90408.0,90396.0,0.31023482]
[1731857569814,0.0008563,90408.0,90396.0,0.34600306]
[1731857570705,0.0008563,90408.0,90396.0,0.62337643]
[1731857572267,0.0008563,90408.0,90396.0,0.72337643]
[1731857586664,0.0008563,90408.0,90396.0,0.71837643]
[1731857586890,0.0008563,90408.0,90396.0,0.72337643]
[1731857589438,0.0008563,90408.0,90396.0,0.71837643]
[1731857589658,0.0008563,90408.0,90396.0,0.72337643]
[1731857592034,0.0008563,90408.0,90396.0,0.48955479]
[1731857592267,0.0008563,90408.0,90396.0,0.60396561]
[1731857592483,0.0008563,90408.0,90396.0,0.60896561]
[1731857593324,0.0008563,90408.0,90396.0,0.44100306]
[1731857593597,0.0008563,90408.0,90396.0,0.56541388]
[1731857593815,0.0008563,90408.0,90396.0,0.72187643]
[1731857600969,0.0008563,90408.0,90407.0,0.53153164]
[1731857601240,0.16613963,90422.0,90421.0,0.1386]
[1731857601461,0.16613963,90422.0,90421.0,0.58707719]
[1731857601686,0.16613963,90422.0,90421.0,0.68707719]
[1731857601895,0.16699603,90432.0,90421.0,0.68707719]
[1731857601896,0.16699603,90432.0,90426.0,0.120587]
[1731857602138,0.16699603,90432.0,90426.0,0.231861]
[1731857602370,0.0008564,90432.0,90426.0,0.22964955]
[1731857603687,0.0008564,90432.0,90426.0,0.22464955]
[1731857603910,0.0008564,90432.0,90426.0,0.22964955]
[1731857605476,0.0008564,90432.0,90426.0,0.14691523]
[1731857605710,0.0008564,90432.0,90424.0,0.110589]
[1731857605990,0.0008564,90432.0,90423.0,0.221182]
[1731857605991,0.110582,90431.0,90425.0,0.110588]
[1731857606210,0.110582,90431.0,90412.0,0.1245]
[1731857606211,0.38730563,90430.0,90405.0,0.221225]
[1731857606435,0.38730563,90430.0,90412.0,0.16613963]
[1731857606436,0.110599,90417.0,90412.0,0.16613963]
[1731857606666,0.110599,90417.0,90404.0,0.03654285]
[1731857606891,0.16613963,90416.0,90393.0,0.11441082]
[1731857607110,0.16613963,90420.0,90403.0,0.16613963]
[1731857607328,0.16613963,90420.0,90395.0,0.03497612]
[1731857607329,0.10906255,90419.0,90402.0,0.110616]
[1731857607546,0.10906255,90419.0,90398.0,0.221243]
[1731857608005,0.110608,90409.0,90404.0,0.110614]
[1731857608520,0.110607,90410.0,90404.0,0.110614]
[1731857608937,0.22121,90412.0,90401.0,0.221236]
[1731857609158,0.10906255,90419.0,90402.0,0.110617]
[1731857609361,0.110616,90403.0,90398.0,0.110621]
[1731857609586,0.10906255,90419.0,90397.0,0.16613963]
[1731857609810,0.110612,90406.0,90396.0,0.221248]
[1731857610053,0.110622,90398.0,90387.0,0.0017118]
[1731857610266,0.221229,90404.0,90391.0,0.27676863]
[1731857610267,0.110623,90397.0,90391.0,0.27676863]
[1731857610503,0.110623,90397.0,90387.0,0.0017118]
[1731857610504,0.16613963,90403.0,90387.0,0.0017118]
[1731857610715,0.110625,90396.0,90387.0,0.0017118]
[1731857610920,0.110625,90396.0,90389.0,0.110632]
[1731857611135,0.221238,90400.0,90390.0,0.110631]
[1731857611348,0.110623,90397.0,90390.0,0.110631]
[1731857611578,0.110622,90398.0,90392.0,0.110628]
[1731857611783,0.110618,90402.0,90394.0,0.110625]
[1731857612024,0.0783,90404.0,90387.0,0.0017118]
[1731857612266,0.26533047,90410.0,90387.0,0.0017118]
[1731857612267,0.26533047,90410.0,90393.0,0.44251]
[1731857612268,0.16613963,90410.0,90393.0,0.44251]
[1731857612519,0.16613963,90410.0,90391.0,0.11441082]
[1731857612520,0.110613,90406.0,90398.0,0.11062]
[1731857612718,0.16613963,90410.0,90398.0,0.11062]
[1731857612719,0.110613,90405.0,90398.0,0.11062]
[1731857613190,0.110615,90404.0,90398.0,0.11062]
[1731857613419,0.110614,90404.0,90397.0,0.110622]
[1731857613657,0.16613963,90410.0,90390.0,0.221262]
[1731857613897,0.110616,90403.0,90391.0,0.16613963]
[1731857614118,0.16613963,90410.0,90395.0,0.110624]
[1731857614119,0.110619,90401.0,90395.0,0.110624]
[1731857614342,0.221224,90406.0,90396.0,0.110624]
[1731857614573,0.221224,90406.0,90391.0,0.16613963]
[1731857614574,0.16613963,90410.0,90394.0,0.221253]
[1731857614809,0.11061,90408.0,90401.0,0.110617]
[1731857615043,0.11061,90408.0,90392.0,0.221258]
[1731857615044,0.110608,90409.0,90393.0,0.221256]
[1731857615254,0.11061,90408.0,90401.0,0.110617]
[1731857615479,0.11061,90408.0,90398.0,0.221242]
[1731857615688,0.16613963,90410.0,90398.0,0.221242]
[1731857615920,0.16613963,90410.0,90392.0,0.221258]
[1731857616132,0.1,90412.0,90403.0,0.110615]
[1731857616346,0.267002,90416.0,90392.0,0.221258]
[1731857616347,0.110606,90411.0,90404.0,0.110614]
[1731857616558,0.110607,90410.0,90404.0,0.110614]
[1731857617226,0.110596,90419.0,90413.0,0.110602]
[1731857617464,0.110596,90419.0,90411.0,0.221211]
[1731857617465,0.16613963,90419.0,90412.0,0.221207]
[1731857617697,0.110596,90419.0,90413.0,0.11441082]
[1731857617915,0.0008562,90427.0,90415.0,0.1106]
[1731857617916,0.110595,90420.0,90415.0,0.1106]
[1731857618131,0.110595,90420.0,90413.0,0.11441082]
[1731857618350,0.22118,90424.0,90414.0,0.110601]
[1731857618569,0.221182,90423.0,90415.0,0.1106]
[1731857618778,0.110599,90417.0,90413.0,0.11441082]
[1731857619035,0.002,90422.0,90399.0,0.11441082]
[1731857619258,0.221216,90410.0,90407.0,0.16613963]
[1731857619481,0.110613,90406.0,90396.0,0.221248]
[1731857619712,0.110613,90406.0,90401.0,0.16613963]
[1731857619930,0.221216,90410.0,90399.0,0.11062]
[1731857619931,0.110613,90405.0,90399.0,0.11062]
[1731857620161,0.110613,90405.0,90396.0,0.221248]
[1731857620162,0.11061,90407.0,90400.0,0.110619]
[1731857620396,0.110604,90413.0,90406.0,0.110611]
[1731857620671,0.16613963,90420.0,90410.0,0.11441082]
[1731857620897,0.16613963,90420.0,90419.0,0.110596]
[1731857621343,0.221175,90426.0,90417.0,0.110598]
[1731857621636,0.221175,90426.0,90414.0,0.221204]
[1731857621902,0.221175,90426.0,90413.0,0.221207]
[1731857621903,0.110591,90423.0,90417.0,0.110597]
[1731857622113,0.221177,90425.0,90417.0,0.110597]
[1731857622334,0.110592,90423.0,90417.0,0.110597]
[1731857622763,0.0008562,90427.0,90413.0,0.221207]
[1731857622974,0.110595,90420.0,90411.0,0.0787]
[1731857623184,0.110592,90423.0,90416.0,0.110599]
[1731857623393,0.22118,90424.0,90416.0,0.110599]
[1731857623622,0.110593,90422.0,90416.0,0.110599]
[1731857623833,0.22118,90424.0,90416.0,0.110599]
[1731857624058,0.221175,90426.0,90414.0,0.110601]
[1731857624295,0.110594,90421.0,90415.0,0.1106]
[1731857624548,0.110594,90421.0,90416.0,0.110599]
[1731857625203,0.110594,90421.0,90414.0,0.110602]
[1731857625470,0.221177,90425.0,90413.0,0.221207]
[1731857625699,0.110595,90420.0,90414.0,0.110602]
[1731857625926,0.110595,90420.0,90415.0,0.1106]
[1731857626147,0.110595,90420.0,90414.0,0.110601]
[1731857626613,0.221175,90426.0,90416.0,0.221199]
[1731857626848,0.11059,90424.0,90416.0,0.221199]
[1731857627060,0.0008562,90427.0,90411.0,0.0787]
[1731857627061,0.1114432,90427.0,90414.0,0.221204]
[1731857627280,0.1114432,90427.0,90411.0,0.0787]
[1731857627281,0.1114432,90427.0,90418.0,0.221194]
[1731857627706,0.110587,90426.0,90420.0,0.110594]
[1731857627912,0.110588,90425.0,90420.0,0.110594]
[1731857628116,0.331762,90426.0,90418.0,0.110596]
[1731857628361,0.110589,90425.0,90418.0,0.110596]
[1731857628805,0.11059,90424.0,90418.0,0.110596]
[1731857630163,0.11059,90424.0,90415.0,0.221202]
[1731857630375,0.11059,90424.0,90413.0,0.221207]
[1731857630376,0.0008559,90421.0,90418.0,0.110596]
[1731857630940,0.0008559,90421.0,90416.0,0.110599]
[1731857631352,0.0008559,90421.0,90411.0,0.0787]
[1731857631551,0.110595,90420.0,90415.0,0.1106]
[1731857631809,0.0008559,90421.0,90411.0,0.0787]
[1731857631977,0.0008559,90421.0,90420.0,0.110595]
[1731857632659,0.0008559,90421.0,90420.0,0.11280687]
[1731857632935,0.0008559,90421.0,90420.0,0.18800687]
[1731857633389,0.0008559,90421.0,90420.0,0.23540687]
[1731857636547,0.0008559,90421.0,90420.0,0.233195]
[1731857638518,0.0008559,90421.0,90420.0,0.23540666]
[1731857640446,0.0008559,90421.0,90420.0,0.233195]
[1731857642647,0.0008559,90421.0,90420.0,0.238195]
[1731857642839,0.0008559,90421.0,90420.0,0.45225755]
[1731857645476,0.0008559,90421.0,90420.0,0.56666837]
[1731857645690,0.0008559,90421.0,90420.0,0.45225755]
[1731857645901,0.0008559,90421.0,90420.0,0.56666837]
[1731857647267,0.0008559,90421.0,90420.0,0.58966837]
[1731857648413,0.0008559,90421.0,90420.0,0.59166837]
[1731857649066,0.0008562,90427.0,90426.0,0.220587]
[1731857649278,0.0008562,90427.0,90426.0,0.45496066]
[1731857649482,0.0008562,90427.0,90426.0,0.45274955]
[1731857649936,0.0008562,90427.0,90426.0,0.45074955]
[1731857650144,0.0008562,90427.0,90426.0,0.56516037]
[1731857652155,0.0008562,90427.0,90426.0,0.58816037]
[1731857654149,0.0008562,90427.0,90426.0,0.59016037]
[1731857654584,0.0008562,90427.0,90426.0,0.58816037]
[1731857655044,0.0008562,90427.0,90426.0,0.61008441]
[1731857655483,0.0008562,90427.0,90426.0,0.61208441]
[1731857656136,0.0008562,90427.0,90426.0,0.64864844]
[1731857658071,0.0008562,90427.0,90426.0,0.64664844]
[1731857658301,0.0008562,90427.0,90426.0,0.6247244]
[1731857658714,0.0008562,90427.0,90426.0,0.6267244]
[1731857659648,0.0008562,90427.0,90426.0,0.6311454]
[1731857660717,0.01232587,90440.0,90439.0,0.01]
[1731857660926,0.01232587,90440.0,90439.0,0.57474437]
[1731857662526,7.1e-07,90455.0,90454.0,0.01]
[1731857662730,0.16613963,90470.0,90456.0,0.22055]
[1731857662940,0.000815,90457.0,90456.0,0.56702337]
[1731857663558,0.000815,90457.0,90456.0,0.59002337]
[1731857663974,0.000815,90457.0,90456.0,0.56702337]
[1731857664204,0.000815,90457.0,90456.0,0.59002337]
[1731857664409,0.16613963,90468.0,90456.0,0.59002337]
[1731857664410,4.14e-05,90464.0,90463.0,0.220542]
[1731857664611,4.14e-05,90464.0,90463.0,0.59001537]
[1731857665319,4.14e-05,90464.0,90463.0,0.56701537]
[1731857669202,4.14e-05,90464.0,90463.0,0.59001537]
[1731857669450,4.14e-05,90464.0,90463.0,0.59201537]
[1731857669962,4.14e-05,90464.0,90463.0,0.59001537]
[1731857670549,4.14e-05,90464.0,90463.0,0.45260455]
[1731857670745,4.14e-05,90464.0,90463.0,0.56701537]
[1731857677204,4.14e-05,90464.0,90463.0,0.56872617]
[1731857681779,4.14e-05,90464.0,90463.0,0.52212617]
[1731857683379,4.14e-05,90464.0,90463.0,0.44572617]
[1731857684929,4.14e-05,90464.0,90463.0,0.22631535]
[1731857685139,4.14e-05,90464.0,90463.0,0.22131535]
[1731857685998,4.14e-05,90464.0,90463.0,0.22631535]
[1731857686424,4.14e-05,90464.0,90463.0,0.34293671]
[1731857686625,4.14e-05,90464.0,90463.0,0.57342617]
[1731857695020,4.14e-05,90464.0,90463.0,0.44072617]
[1731857695246,4.14e-05,90464.0,90463.0,0.44572617]
[1731857696362,4.14e-05,90464.0,90463.0,0.44072617]
[1731857697060,4.14e-05,90464.0,90463.0,0.44572617]
[1731857697742,4.14e-05,90464.0,90463.0,0.44072617]
[1731857698401,4.14e-05,90464.0,90463.0,0.32131535]
[1731857699311,4.14e-05,90464.0,90463.0,0.22131535]
[1731857699968,0.02074298,90464.0,90463.0,0.22131535]
[1731857700414,0.02074298,90464.0,90463.0,0.1122528]
[1731857701122,4.14e-05,90464.0,90463.0,0.0017108]
[1731857701331,0.02074413,90464.0,90463.0,0.0017108]
[1731857701563,0.21118513,90464.0,90463.0,0.0017108]
[1731857702004,0.10064413,90464.0,90463.0,0.1122528]
[1731857702247,0.0799414,90464.0,90463.0,0.0017108]
[1731857702486,0.1904824,90464.0,90463.0,0.0017108]
[1731857702710,0.0799414,90464.0,90463.0,0.0017108]
[1731857703804,0.1904824,90464.0,90463.0,0.0017108]
[1731857704027,0.0799414,90464.0,90463.0,0.0017108]
[1731857704467,0.1904824,90464.0,90463.0,0.0017108]
[1731857705182,0.0799414,90464.0,90463.0,0.0017108]
[1731857705839,0.1904824,90464.0,90463.0,0.0017108]
[1731857706079,0.0799414,90464.0,90463.0,0.0017108]
[1731857706522,0.1904824,90464.0,90463.0,0.0017108]
[1731857708327,0.21114755,90464.0,90463.0,0.0017108]
[1731857709260,0.1904824,90464.0,90463.0,0.0017108]
[1731857709708,0.6324805,90464.0,90463.0,0.0017108]
[1731857709941,0.11057,90440.0,90434.0,0.110577]
[1731857710174,0.11057,90440.0,90439.0,0.16613963]
[1731857710607,0.11057,90440.0,90435.0,0.110575]
[1731857711296,0.221141,90440.0,90421.0,0.1017116]
[1731857711516,0.110573,90438.0,90432.0,0.11058]
[1731857711749,0.006,90441.0,90421.0,0.0017116]
[1731857711973,0.221162,90432.0,90424.0,0.110589]
[1731857712201,0.110584,90429.0,90424.0,0.110589]
[1731857712498,0.221162,90432.0,90423.0,0.11059]
[1731857712499,0.110583,90430.0,90423.0,0.11059]
[1731857712752,0.16613963,90439.0,90421.0,0.0017116]
[1731857712981,0.221173,90427.0,90421.0,0.0017116]
[1731857713449,0.110587,90427.0,90422.0,0.110591]
[1731857714379,0.16613963,90439.0,90421.0,0.0017116]
[1731857714380,0.11059,90424.0,90421.0,0.0017116]
[1731857714596,0.03500556,90438.0,90421.0,0.0017116]
[1731857714846,0.11059,90424.0,90421.0,0.0017116]
[1731857715068,0.221174,90427.0,90421.0,0.0017116]
[1731857715069,0.110588,90426.0,90421.0,0.0017116]
[1731857715517,0.11059,90424.0,90421.0,0.0017116]
[1731857715752,0.110588,90426.0,90421.0,0.1123046]
[1731857715956,0.221166,90430.0,90421.0,0.1123046]
[1731857715957,0.110589,90425.0,90421.0,0.0017116]
[1731857716203,0.110583,90430.0,90421.0,0.0017116]
[1731857716416,0.221155,90435.0,90424.0,0.110589]
[1731857716641,0.221155,90435.0,90422.0,0.221183]
[1731857716642,0.10906255,90437.0,90422.0,0.110592]
[1731857717098,0.110574,90437.0,90423.0,0.16613963]
[1731857717339,0.005,90443.0,90423.0,0.16613963]
[1731857717340,0.005,90446.0,90431.0,0.11058]
[1731857717565,0.110578,90434.0,90427.0,0.0815]
[1731857717804,0.005,90443.0,90422.0,0.0454]
[1731857717805,0.221146,90438.0,90422.0,0.0454]
[1731857718021,0.005,90443.0,90426.0,0.110586]
[1731857718253,0.005,90443.0,90421.0,0.0017116]
[1731857718254,0.0498,90437.0,90421.0,0.0017116]
[1731857718468,0.11059,90424.0,90423.0,0.16613963]
[1731857718691,0.110592,90422.0,90421.0,0.0017116]
[1731857720054,0.189992,90422.0,90421.0,0.0017116]
[1731857722080,0.235192,90422.0,90421.0,0.0017116]
[1731857722750,0.34925455,90422.0,90421.0,0.0017116]
[1731857722989,0.35625455,90422.0,90421.0,0.0017116]
[1731857723205,0.47066537,90422.0,90421.0,0.0017116]
[1731857724082,0.37682666,90422.0,90421.0,0.0017116]
[1731857724550,0.41343732,90422.0,90421.0,0.0017116]
[1731857724983,0.44634502,90422.0,90421.0,0.0017116]
[1731857725658,0.45662795,90422.0,90421.0,0.0017116]
[1731857726112,0.41301729,90422.0,90421.0,0.0017116]
[1731857726340,0.16907181,90422.0,90421.0,0.0017116]
[1731857726757,0.13616411,90422.0,90421.0,0.0017116]
[1731857727188,0.02057211,90422.0,90421.0,0.0017116]
[1731857727398,0.13116411,90422.0,90421.0,0.0017116]
[1731857728178,0.02057211,90422.0,90421.0,0.0017116]
[1731857728387,0.02057211,90422.0,90421.0,0.1123046]
[1731857728594,0.02057211,90428.0,90423.0,0.11059]
[1731857728803,0.02057211,90428.0,90424.0,0.110589]
[1731857729014,0.110584,90429.0,90424.0,0.110589]
[1731857729226,0.02057211,90428.0,90427.0,0.110586]
[1731857729693,0.12057211,90431.0,90427.0,0.110586]
[1731857729924,0.02057211,90430.0,90424.0,0.22118]
[1731857730144,0.1,90431.0,90427.0,0.110586]
[1731857730363,0.12057211,90431.0,90426.0,0.110587]
[1731857730579,0.12057211,90431.0,90421.0,0.0017116]
[1731857730580,0.02057211,90430.0,90424.0,0.22118]
[1731857731018,0.221149,90437.0,90425.0,0.16613963]
[1731857731240,0.1,90439.0,90431.0,0.11058]
[1731857731477,0.210576,90436.0,90430.0,0.110581]
[1731857731697,0.1,90434.0,90428.0,0.110584]
[1731857732360,0.210577,90434.0,90426.0,0.221175]
[1731857732811,0.1,90438.0,90429.0,0.110583]
[1731857733030,0.1,90434.0,90429.0,0.110583]
[1731857733466,0.1,90434.0,90424.0,0.16613963]
[1731857733467,0.11058,90432.0,90426.0,0.110586]
[1731857733708,0.11058,90432.0,90422.0,0.081]
[1731857733709,0.1,90434.0,90422.0,0.081]
[1731857733964,0.005,90433.0,90422.0,0.081]
[1731857734139,0.110586,90427.0,90420.0,0.110594]
[1731857734362,0.110586,90427.0,90421.0,0.1123046]
[1731857734585,0.110586,90427.0,90421.0,0.0017116]
[1731857734814,0.22616,90432.0,90422.0,0.110591]
[1731857735046,0.221165,90430.0,90421.0,0.1123046]
[1731857735303,0.110592,90422.0,90421.0,0.0017116]
[1731857735535,0.13120905,90422.0,90421.0,0.0017116]
[1731857737139,0.110592,90422.0,90421.0,0.0017116]
[1731857737359,0.13124048,90422.0,90421.0,0.0017116]
[1731857738945,0.02064848,90422.0,90421.0,0.0017116]
[1731857739844,0.02064848,90422.0,90421.0,0.1123046]
[1731857740496,0.02064848,90422.0,90421.0,0.0017116]
[1731857740969,0.02067621,90422.0,90421.0,0.0017116]
[1731857741404,0.13126821,90422.0,90421.0,0.0017116]
[1731857741639,0.02067621,90422.0,90421.0,0.0017116]
[1731857741882,0.13126821,90422.0,90421.0,0.0017116]
[1731857742109,0.13127539,90422.0,90421.0,0.0017116]
[1731857742335,0.02068339,90422.0,90421.0,0.0017116]
[1731857744406,0.02068995,90422.0,90421.0,0.0017116]
[1731857745296,0.02068995,90422.0,90421.0,0.1123046]
[1731857745723,0.02068995,90422.0,90421.0,0.0017116]
[1731857746566,0.02068995,90422.0,90421.0,0.1123046]
[1731857750879,0.02068995,90422.0,90421.0,0.0017116]
[1731857751608,0.13128195,90422.0,90421.0,0.0017116]
[1731857751882,0.02068995,90422.0,90421.0,0.0017116]
[1731857752098,0.02068995,90422.0,90421.0,0.1123046]
[1731857752998,0.04291254,90422.0,90421.0,0.1123046]
[1731857755519,0.04291254,90422.0,90421.0,0.1932046]
[1731857755720,0.02068995,90422.0,90421.0,0.1932046]
[1731857757901,0.02068995,90422.0,90421.0,0.2428046]
[1731857758828,0.02068995,90422.0,90421.0,0.35407883]
[1731857759064,0.02068995,90422.0,90421.0,0.35186715]
[1731857759281,0.16613963,90440.0,90438.0,0.110572]
[1731857759522,0.02071239,90439.0,90438.0,0.192972]
[1731857759746,0.02071239,90439.0,90438.0,0.0824]
[1731857760204,0.13128339,90439.0,90438.0,0.0824]
[1731857760441,0.02071239,90439.0,90433.0,0.0824]
[1731857760687,0.36992815,90445.0,90433.0,0.0824]
[1731857760688,0.02071239,90438.0,90437.0,0.110574]
[1731857760919,0.02071239,90438.0,90437.0,0.35163655]
[1731857761156,0.02071239,90438.0,90437.0,0.35663655]
[1731857761372,0.16613963,90450.0,90449.0,0.242559]
[1731857761603,0.18682794,90450.0,90449.0,0.242559]
[1731857761829,0.02068831,90450.0,90449.0,0.242559]
[1731857763178,0.16613963,90461.0,90449.0,0.132]
[1731857763409,0.16613963,90461.0,90460.0,0.110546]
[1731857763629,0.02065595,90461.0,90460.0,0.110546]
[1731857764292,0.0008554,90463.0,90456.0,0.2211]
[1731857764293,0.02065595,90462.0,90456.0,0.2211]
[1731857764503,0.02065595,90462.0,90461.0,0.192944]
[1731857764928,0.02151135,90463.0,90462.0,0.110543]
[1731857765165,0.0008554,90463.0,90462.0,0.110543]
[1731857765612,0.0008554,90463.0,90461.0,0.0824]
[1731857765886,0.0008554,90463.0,90461.0,0.192944]
[1731857766101,0.0008554,90463.0,90462.0,0.160143]
[1731857769210,0.0008554,90463.0,90462.0,0.16235371]
[1731857770791,0.0008554,90463.0,90462.0,0.27141626]
[1731857771007,0.0008554,90463.0,90462.0,0.35381626]
[1731857771223,0.0008554,90463.0,90462.0,0.35660555]
[1731857771434,0.0008554,90463.0,90462.0,0.35160555]
[1731857780237,0.0008554,90463.0,90462.0,0.42642618]
[1731857780681,0.0008554,90463.0,90462.0,0.43142618]
[1731857780900,0.0008554,90463.0,90462.0,0.50624681]
[1731857781143,0.0008554,90463.0,90462.0,0.43142618]
[1731857783796,0.0016094,90465.0,90464.0,0.005]
[1731857784029,0.0016094,90465.0,90464.0,0.34970355]
[1731857784262,0.0016094,90465.0,90464.0,0.463702]
[1731857784479,0.0006094,90465.0,90464.0,0.463702]
[1731857785166,0.0069234,90475.0,90474.0,0.187128]
[1731857785622,0.0069234,90475.0,90474.0,0.235628]
[1731857788042,0.0069234,90475.0,90474.0,0.34690091]
[1731857788272,0.0069234,90475.0,90474.0,0.34969055]
[1731857788693,0.0069234,90475.0,90474.0,0.38537174]
[1731857789829,0.0008559,90488.0,90476.0,0.268626]
[1731857790084,0.0008559,90488.0,90476.0,0.47768855]
[1731857793895,0.0008559,90488.0,90476.0,0.45468855]
[1731857794095,0.0008559,90488.0,90476.0,0.44968855]
[1731857796761,0.0008559,90488.0,90476.0,0.45468855]
[1731857796975,0.0008559,90488.0,90476.0,0.44968855]
[1731857797212,0.0008559,90488.0,90476.0,0.45468855]
[1731857797433,0.0008559,90488.0,90476.0,0.44968855]
[1731857798109,0.0008559,90488.0,90476.0,0.45468855]
[1731857798324,0.0008559,90488.0,90476.0,0.44968855]
[1731857798554,0.0008559,90488.0,90476.0,0.45468855]
[1731857798986,0.0008559,90488.0,90476.0,0.44968855]
[1731857799212,0.0008559,90488.0,90476.0,0.45468855]
[1731857800519,0.0008559,90488.0,90476.0,0.44968855]
[1731857804185,0.0008559,90488.0,90476.0,0.563687]
[1731857804850,0.0008559,90488.0,90476.0,0.586687]
[1731857807753,0.0008559,90488.0,90476.0,0.591687]
[1731857809342,0.0008559,90488.0,90476.0,0.586687]
[1731857809553,0.0008559,90488.0,90476.0,0.591687]
[1731857810230,0.0008559,90488.0,90476.0,0.62721725]
[1731857811158,0.16613963,90487.0,90476.0,0.44968855]
[1731857811367,0.0008559,90488.0,90476.0,0.5244529]
[1731857812014,0.0008559,90488.0,90476.0,0.59921725]
[1731857812231,0.0008559,90488.0,90476.0,0.60421725]
[1731857812479,0.0008559,90488.0,90476.0,0.62221725]
[1731857812689,0.0008559,90488.0,90476.0,0.62721725]
[1731857813124,0.0008559,90488.0,90476.0,0.62221725]
[1731857813338,0.0008559,90488.0,90476.0,0.62721725]
[1731857819678,0.0008559,90488.0,90476.0,0.47768855]
[1731857819899,0.0008559,90488.0,90476.0,0.62721725]
[1731857820359,0.0008559,90488.0,90476.0,0.47768855]
[1731857820601,0.0008559,90488.0,90476.0,0.5524529]
[1731857822423,0.0008559,90488.0,90476.0,0.5474529]
[1731857822871,0.0008559,90488.0,90476.0,0.62721725]
[1731857823789,0.0008559,90488.0,90487.0,0.238513]
[1731857824023,0.0008559,90488.0,90487.0,0.5496399]
[1731857824250,0.0008559,90488.0,90487.0,0.58877931]
[1731857825369,0.0008559,90488.0,90487.0,0.62509554]
[1731857826232,0.0008559,90488.0,90487.0,0.63009554]
[1731857827362,0.0008559,90488.0,90487.0,0.72871706]
[1731857828020,0.0008559,90488.0,90487.0,0.72872992]
[1731857828234,0.0008559,90488.0,90487.0,0.63009554]
[1731857828447,0.0008559,90488.0,90487.0,0.72872992]
[1731857828889,0.0008559,90488.0,90487.0,0.63009554]
[1731857830166,0.0008559,90488.0,90487.0,0.72872992]
[1731857830387,0.0008559,90488.0,90487.0,0.63009554]
[1731857830595,0.0008559,90488.0,90487.0,0.72878188]
[1731857830807,0.0008559,90488.0,90487.0,0.63009554]
[1731857831271,0.0008559,90488.0,90487.0,0.72878082]
[1731857831478,0.0008559,90488.0,90487.0,0.63009554]
[1731857831941,0.0008559,90488.0,90487.0,0.62509554]
[1731857833071,0.0008559,90488.0,90487.0,0.63009554]
[1731857833072,0.0006559,90488.0,90487.0,0.63009554]
[1731857833783,0.0006559,90488.0,90487.0,0.72878082]
[1731857833993,0.0006559,90488.0,90487.0,0.72882988]
[1731857834413,0.0006559,90488.0,90487.0,0.63009554]
[1731857834630,0.0006559,90488.0,90487.0,0.77813155]
[1731857834836,0.0006559,90488.0,90487.0,0.63009554]
[1731857835063,0.0006559,90488.0,90487.0,0.59709554]
[1731857835311,0.0006559,90488.0,90487.0,0.25589178]
[1731857835564,0.0006559,90488.0,90487.0,0.30368538]
[1731857835782,0.0006559,90488.0,90487.0,0.30147555]
[1731857836325,0.0006559,90488.0,90487.0,0.35067555]
[1731857836551,0.0006559,90488.0,90487.0,0.47367555]
[1731857836797,0.0006559,90488.0,90487.0,0.57745641]
[1731857837030,0.0006559,90488.0,90487.0,0.5774326]
[1731857837270,0.0006559,90488.0,90487.0,0.47867555]
[1731857837498,0.0006559,90488.0,90487.0,0.95765354]
[1731857837743,0.0006559,90488.0,90487.0,0.62684685]
[1731857837971,0.0006559,90488.0,90487.0,0.80947522]
[1731857838194,0.0008561,90497.0,90496.0,0.115502]
[1731857838426,0.0008561,90497.0,90496.0,0.59026831]
[1731857838685,0.0008561,90497.0,90496.0,0.68898912]
[1731857838915,0.0008561,90497.0,90496.0,0.80289288]
[1731857839414,0.16613963,90529.0,90517.0,0.138476]
[1731857839648,0.16613963,90529.0,90517.0,0.36144231]
[1731857840109,0.0752,90537.0,90517.0,0.36144231]
[1731857840758,0.0752,90537.0,90517.0,0.39772835]
[1731857841936,0.0752,90537.0,90517.0,0.49772835]
[1731857842171,0.0492,90540.0,90517.0,0.49772835]
[1731857842390,0.16613963,90547.0,90517.0,0.62962835]
[1731857842826,0.110441,90546.0,90517.0,0.62962835]
[1731857843254,0.16613963,90547.0,90517.0,0.62962835]
[1731857843467,0.110443,90544.0,90517.0,0.62962835]
[1731857843711,0.220885,90545.0,90517.0,0.62962835]
[1731857843905,0.110441,90546.0,90517.0,0.62962835]
[1731857844121,0.16613963,90547.0,90517.0,0.62462835]
[1731857844351,0.0807,90543.0,90517.0,0.55302835]
[1731857844579,0.0807,90543.0,90517.0,0.55802835]
[1731857845039,0.0807,90543.0,90517.0,0.60662835]
[1731857845496,0.0807,90543.0,90517.0,0.62962835]
[1731857846150,0.16613963,90547.0,90522.0,0.36537]
[1731857846380,0.16613963,90547.0,90522.0,0.47443255]
[1731857847097,0.16699543,90548.0,90534.0,0.215455]
[1731857847312,0.16699543,90548.0,90534.0,0.51892998]
[1731857847313,0.16613963,90547.0,90534.0,0.51892998]
[1731857847525,0.0008558,90548.0,90534.0,0.51672131]
[1731857848164,0.0008558,90548.0,90534.0,0.53972131]
[1731857848388,0.0008558,90548.0,90534.0,0.58832131]
[1731857848603,0.05779626,90564.0,90558.0,0.110426]
[1731857848904,0.16821526,90564.0,90553.0,0.11390376]
[1731857849044,0.05779626,90564.0,90554.0,0.11127098]
[1731857849268,0.05779626,90564.0,90555.0,0.22086]
[1731857849484,0.05779626,90564.0,90558.0,0.110425]
[1731857849712,0.05779626,90564.0,90559.0,0.110424]
[1731857849944,0.05779626,90564.0,90560.0,0.110423]